fUSD/lending_fUSD_20260329
["ID","MTS","AMOUNT","RATE_DAILY","PERIOD"]
[419025160,1774775443398,-1000.0,0.00015273,2]
[419025161,1774775443408,-166.66,0.00015333,2]
[419025162,1774775443418,-9969.14014824,0.00015337,2]
[419025163,1774775443428,-5625.89166106,0.00015337,2]
[419025164,1774775443438,-207.88880151,0.00015353,2]
[419025165,1774775443448,-350.0,0.00015415,2]
[419025166,1774775443458,-350.0,0.0001544,3]
[419025167,1774775443468,-1200.0,0.00015452,2]
[419025168,1774775443479,-1700.0,0.00015452,2]
[419025169,1774775443489,-210.05,0.00015474,2]
[419025170,1774775443499,-1523.0,0.00015475,2]
[419025171,1774775443509,-1523.0,0.00015475,2]
[419025172,1774775443519,-1523.0,0.00015475,2]
[419025173,1774775443529,-1523.0,0.00015475,2]
[419025174,1774775443539,-151.0,0.00015475,2]
[419025175,1774775443549,-1523.0,0.00015475,2]
[419025176,1774775443559,-151.0,0.00015475,2]
[419025177,1774775443569,-1523.0,0.00015475,2]
[419025178,1774775443579,-151.0,0.00015475,2]
[419025179,1774775443589,-1523.0,0.00015475,2]
[419025180,1774775443600,-151.0,0.00015475,2]
[419025181,1774775443610,-1523.0,0.00015475,2]
[419025182,1774775443620,-302.0,0.00015475,2]
[419025183,1774775443630,-1523.0,0.00015475,2]
[419025184,1774775443640,-1523.0,0.00015475,2]
[419025185,1774775443650,-1523.0,0.00015475,2]
[419025186,1774775443660,-1523.0,0.00015475,2]
[419025187,1774775443671,-153.0,0.00015475,2]
[419025188,1774775443681,-154.87147006,0.00015475,2]
[419025189,1774775443691,-1555.0,0.00015497,2]
[419025190,1774775443701,-2003.48418562,0.000155,3]
[419025191,1774775443711,-1555.0,0.00015521,2]
[419025192,1774775443721,-1555.0,0.00015553,2]
[419025193,1774775443731,-2500.0,0.00015564,2]
[419025194,1774775443741,-687.00361556,0.00015568,2]
[419025195,1774775443751,-1500.0,0.00015568,2]
[419025196,1774775443761,-1500.0,0.00015568,2]
[419025197,1774775443771,-1500.0,0.00015568,2]
[419025198,1774775443781,-1500.0,0.00015568,2]
[419025199,1774775443791,-1500.0,0.00015568,2]
[419025200,1774775443800,-1500.0,0.00015568,2]
[419025201,1774775443811,-1411.77279152,0.00015568,2]
[419025202,1774775443820,-1507.9229115,0.00015568,2]
[419025203,1774775443830,-1510.44418561,0.00015568,2]
[419025204,1774775443839,-685.01158904,0.00015568,2]
[419025205,1774775443849,-1581.10726522,0.00015568,2]
[419025206,1774775443859,-1500.0,0.00015568,2]
[419025207,1774775443869,-1500.0,0.00015568,2]
[419025208,1774775443880,-1003.54904412,0.00015568,2]
[419025209,1774775443890,-429.29760846,0.00015584,2]
[419025210,1774775443900,-2000.0,0.000156,2]
[419025211,1774775443910,-2850.0,0.00015613,2]
[419025212,1774775443920,-9969.14014824,0.00015618,2]
[419025213,1774775443930,-5625.89166106,0.00015618,2]
[419025214,1774775443940,-732.73812256,0.00015634,2]
[419025215,1774775443951,-330.9471,0.00015644,2]
[419025216,1774775443961,-1000.0,0.00015644,2]
[419025217,1774775443972,-2850.0,0.00015647,2]
[419025218,1774775443983,-2850.0,0.00015653,2]
[419025219,1774775443993,-433.0,0.00015677,2]
[419025220,1774775444003,-1555.0,0.00015692,2]
[419025221,1774775444013,-1000.0,0.00015724,2]
[419025222,1774775444024,-1000.0,0.00015725,2]
[419025223,1774775444034,-683.0,0.00015727,2]
[419025224,1774775444044,-1000.0,0.00015734,2]
[419025225,1774775444054,-1600.0,0.00015747,2]
[419025226,1774775444064,-1000.0,0.00015753,2]
[419025227,1774775444075,-1692.3,0.00015753,2]
[419025228,1774775444085,-1000.0,0.00015755,2]
[419025229,1774775444095,-150.0,0.00015773,2]
[419025230,1774775444104,-155.85026359,0.00015773,2]
[419025231,1774775444114,-1000.0,0.00015776,2]
[419025232,1774775444124,-559.0,0.00015781,2]
[419025233,1774775444134,-725.0,0.00015781,2]
[419025234,1774775444143,-1000.0,0.00015783,2]
[419025235,1774775444153,-1000.0,0.00015786,2]
[419025236,1774775444163,-166.66,0.00015793,2]
[419025237,1774775444173,-161.59374025,0.00015799,2]
[419025238,1774775444184,-2000.0,0.000158,2]
[419025239,1774775444193,-1000.0,0.00015803,2]
[419025240,1774775444204,-289.43,0.00015813,2]
[419025241,1774775444214,-157.91692302,0.00015817,2]
[419025242,1774775444224,-1500.0,0.00015821,2]
[419025243,1774775444234,-1500.0,0.00015821,2]
[419025244,1774775444244,-1581.45389944,0.00015821,2]
[419025245,1774775444255,-1000.0,0.00015836,2]
[419025246,1774775444264,-65223.01927979,0.0001584,2]
[419025247,1774775444274,-1000.0,0.0001584,2]
[419025248,1774775444284,-1000.0,0.0001584,2]
[419025249,1774775444294,-1000.0,0.00015845,2]
[419025250,1774775444304,-1000.0,0.00015847,2]
[419025251,1774775444313,-1000.0,0.0001585,2]
[419025252,1774775444323,-1000.0,0.0001586,2]
[419025253,1774775444332,-200.0,0.00015871,2]
[419025254,1774775444342,-200.0,0.00015872,2]
[419025255,1774775444352,-2850.0,0.00015875,2]
[419025256,1774775444362,-212.0,0.00015878,2]
[419025257,1774775444372,-213.676498,0.00015878,2]
[419025258,1774775444382,-1000.0,0.00015882,2]
[419025259,1774775444392,-2000.0,0.0001589,2]
[419025260,1774775444402,-1000.0,0.00015894,2]
[419025261,1774775444412,-1000.0,0.00015899,2]
[419025262,1774775444421,-150.0,0.000159,2]
[419025263,1774775444520,-1000.0,0.000159,2]
[419025264,1774775444530,-150.0,0.000159,2]
[419025265,1774775444539,-150.0,0.000159,2]
[419025266,1774775444548,-20210.25894818,0.000159,2]
[419025267,1774775444557,-231.09519386,0.000159,2]
[419025268,1774775444566,-150.0,0.000159,2]
[419025269,1774775444575,-317141.00092274,0.000159,2]
[419025270,1774775444584,-9969.14014824,0.000159,2]
[419025271,1774775444594,-5625.89166106,0.000159,2]
[419025272,1774775444604,-150.0,0.000159,2]
[419025273,1774775444613,-1000.0,0.00015914,2]
[419025274,1774775444623,-245712.4598289,0.00015917,2]
[419025275,1774775444633,-12681.9465227,0.00015917,2]
[419025276,1774775444642,-505137.541972,0.00015917,2]
[419025277,1774775444651,-151.0,0.00015917,2]
[419025278,1774775444660,-151.0,0.00015917,2]
[419025279,1774775444670,-3117.1311579,0.00015917,2]
[419025280,1774775444680,-151.0,0.00015917,2]
[419025281,1774775444689,-151.0,0.00015917,2]
[419025282,1774775444699,-151.0,0.00015917,2]
[419025283,1774775444708,-29271.5150158,0.00015917,2]
[419025284,1774775444718,-151.0,0.00015917,2]
[419025285,1774775444727,-159.9789,0.00015917,2]
[419025286,1774775444737,-159.9789,0.00015917,2]
[419025287,1774775444746,-159.9789,0.00015917,2]
[419025288,1774775444756,-159.9789,0.00015917,2]
[419025289,1774775444766,-151.0,0.00015917,2]
[419025290,1774775444775,-151.0,0.00015917,2]
[419025291,1774775444785,-151.0,0.00015917,2]
[419025292,1774775444795,-698.36356,0.00015917,2]
[419025293,1774775444804,-698.36356,0.00015917,2]
[419025294,1774775444814,-151.0,0.00015917,2]
[419025295,1774775444823,-698.36356,0.00015917,2]
[419025296,1774775444832,-698.36356,0.00015917,2]
[419025297,1774775444840,-612.296676,0.00015917,2]
[419025298,1774775444849,-612.296676,0.00015917,2]
[419025299,1774775444858,-612.296676,0.00015917,2]
[419025300,1774775444868,-612.296676,0.00015917,2]
[419025301,1774775444878,-580.604764,0.00015917,2]
[419025302,1774775444888,-580.604764,0.00015917,2]
[419025303,1774775444897,-580.604764,0.00015917,2]
[419025304,1774775444907,-580.604764,0.00015917,2]
[419025305,1774775444917,-1000.0,0.00015925,2]
[419025306,1774775444926,-1000.0,0.00015926,2]
[419025307,1774775444936,-350.0,0.00015931,3]
[419025308,1774775444945,-667.11049959,0.00015932,2]
[419025309,1774775444955,-243.59117619,0.00015938,2]
[419025310,1774775444964,-1000.0,0.00015949,2]
[419025311,1774775444973,-1000.0,0.00015953,2]
[419025312,1774775444982,-2139.47157294,0.00015956,2]
[419025313,1774775444991,-1968.33862778,0.00015956,2]
[419025314,1774775445002,-5000.0,0.0001596,2]
[419025315,1774775445011,-1000.0,0.00015961,2]
[419025316,1774775445021,-1000.0,0.00015963,2]
[419025317,1774775445031,-683.0,0.00015964,2]
[419025318,1774775445041,-700.0,0.0001597,2]
[419025319,1774775445050,-700.0,0.0001597,2]
[419025320,1774775445059,-700.0,0.0001597,2]
[419025321,1774775445069,-854.65118905,0.0001597,2]
[419025322,1774775445078,-500.0,0.00015973,2]
[419025323,1774775445087,-1000.0,0.00015982,2]
[419025324,1774775445096,-1000.0,0.00015986,2]
[419025325,1774775445105,-1000.0,0.00015987,2]
[419025326,1774775445115,-1000.0,0.00015988,2]
[419025327,1774775445124,-204.55546462,0.0001599,2]
[419025328,1774775445134,-204.55546462,0.0001599,2]
[419025329,1774775445144,-151.42246905,0.00015991,7]
[419025330,1774775445153,-151.0,0.00015997,2]
[419025331,1774775445163,-151.0,0.00015997,2]
[419025332,1774775445172,-1608455.91019329,0.00016,2]
[419025333,1774775445190,-3410.04655519,0.00016,2]
[419025359,1774775449888,-972.9137144,0.00013265,2]
[419025362,1774775449898,-160.0,0.00014439,2]
[419025365,1774775449908,-972.91371438,0.00014583,2]
[419025368,1774775449917,-154.53434814,0.00015271,2]
[419025371,1774775449927,-1294.29685605,0.0001596,2]
[419025375,1774775449946,-30445.34136703,0.00016,2]
[419025376,1774775450176,-5134.23898737,0.00016,2]
[419025377,1774775450187,-4996.66130131,0.00016,2]
[419025378,1774775450208,-901.48698902,0.00014298,2]
[419025379,1774775450219,-2736.78163815,0.00014298,2]
[419025380,1774775450312,-126.73137283,0.00014298,2]
[419025381,1774775450321,-2526.77874125,0.00016,2]
[419025382,1774775450332,-16488.13550144,0.00016,2]
[419025383,1774775450367,-444.49439633,0.00016,2]
[419025384,1774775450378,-743.16612084,0.00016,2]
[419025385,1774775450421,-67900.0,0.00016,2]
[419025386,1774775450528,-8870.57998341,0.00016,2]
[419025387,1774775450540,-2172.87581353,0.00016,2]
[419025391,1774776128261,-182.67431271,0.00046897,28]
[419025392,1774776128286,-2697.64493133,0.00046897,20]
[419025393,1774776128311,-2377.12153772,0.00046897,10]
[419025394,1774776128335,-2400.65765709,0.00046897,10]
[419025395,1774776128374,-609.27721092,0.00046897,14]
[419025396,1774776128417,-159.77098002,0.00046897,14]
[419025397,1774776128467,-3915.28646552,0.00046897,12]
[419025398,1774776128501,-5454.72067046,0.00046897,15]
[419025399,1774776128535,-114621.0303318,0.00046897,15]
[419025400,1774776128566,-37076.0,0.00046897,30]
[419025401,1774776128596,-500.0,0.00046897,120]
[419025402,1774776128641,-100000.0,0.00046897,30]
[419025403,1774776128688,-150075.92431222,0.00046897,30]
[419025404,1774776128731,-50000.00440068,0.00046897,120]
[419025405,1774776128766,-1000000.0,0.00046897,60]
[419025406,1774776128802,-1000000.0,0.00046897,60]
[419025407,1774776128837,-1000000.0,0.00046897,60]
[419025408,1774776128878,-1000000.0,0.00046897,60]
[419025409,1774776128916,-529929.88718953,0.00046897,60]
[419025410,1774776137622,-470070.11281047,0.00046897,60]
[419025411,1774776137649,-1000000.0,0.00046897,60]
[419025412,1774776137676,-1000000.0,0.00046897,60]
[419025413,1774776137704,-1000000.0,0.00046897,60]
[419025414,1774776137731,-1000000.0,0.00046897,60]
[419025415,1774776137758,-1000000.0,0.00046897,60]
[419025416,1774776137785,-529929.88718953,0.00046897,60]
[419025417,1774776147688,-470070.11281047,0.00046897,60]
[419025418,1774776147716,-1000000.0,0.00046897,60]
[419025419,1774776147744,-1000000.0,0.00046897,60]
[419025420,1774776147771,-1000000.0,0.00046897,60]
[419025421,1774776147799,-1000000.0,0.00046897,60]
[419025422,1774776147825,-1000000.0,0.00046897,60]
[419025423,1774776147853,-529929.88718953,0.00046897,60]
[419025424,1774776149086,165.82,9.959e-05,2]
[419025425,1774776152510,-318544.11281047,0.00046897,60]
[419025426,1774776152534,-100000.0,0.00046897,30]
[419025427,1774776152557,-100000.0,0.00046897,30]
[419025428,1774776152582,-2275.54785067,0.00046897,30]
[419025429,1774776152606,-500.0,0.00046897,120]
[419025430,1774776152631,-500.0,0.00046897,120]
[419025431,1774776152654,-500.0,0.00046897,120]
[419025432,1774776152678,-500.0,0.00046897,120]
[419025433,1774776152702,-500.0,0.00046897,120]
[419025434,1774776152727,-500.0,0.00046897,120]
[419025435,1774776152750,-500.0,0.00046897,120]
[419025436,1774776152773,-452.15917341,0.00046897,120]
[419025437,1774776152798,-281057.92,0.00046897,60]
[419025438,1774776152822,-10000.0,0.00046897,120]
[419025439,1774776152846,-10000.0,0.00046897,120]
[419025440,1774776152870,-10000.0,0.00046897,120]
[419025441,1774776152895,-10125.0,0.00046897,120]
[419025442,1774776152918,-1244.10480035,0.00046897,60]
[419025443,1774776152942,-100000.0,0.00046897,120]
[419025444,1774776152967,-56908.0,0.00046897,120]
[419025445,1774776152992,-567.0606934,0.00046897,120]
[419025446,1774776153016,-12586.06366139,0.00046897,60]
[419025447,1774776153041,-500.0,0.00046897,120]
[419025448,1774776153065,-500.0,0.00046897,120]
[419025449,1774776153091,-500.0,0.00046897,120]
[419025450,1774776153115,-500.0,0.00046897,120]
[419025451,1774776153141,-358.74383501,0.00046897,120]
[419025452,1774776153165,-2000.0,0.00046897,120]
[419025453,1774776153190,-50000.0,0.00046897,30]
[419025454,1774776153214,-50000.0,0.00046897,30]
[419025455,1774776153238,-50309.737894,0.00046897,60]
[419025456,1774776153264,-500.0,0.00046897,120]
[419025457,1774776153289,-500.0,0.00046897,120]
[419025458,1774776153313,-500.0,0.00046897,120]
[419025459,1774776153337,-500.0,0.00046897,120]
[419025460,1774776153363,-500.0,0.00046897,120]
[419025461,1774776153388,-500.0,0.00046897,120]
[419025462,1774776153411,-500.0,0.00046897,120]
[419025463,1774776153434,-500.0,0.00046897,120]
[419025464,1774776153458,-414.59474168,0.00046897,120]
[419025465,1774776153481,-169.67901542,0.00046897,30]
[419025466,1774776153506,-1000.0,0.00046897,120]
[419025467,1774776153530,-1000.0,0.00046897,120]
[419025468,1774776153554,-1000.0,0.00046897,120]
[419025469,1774776153578,-1000.0,0.00046897,120]
[419025470,1774776153602,-1000.0,0.00046897,120]
[419025471,1774776153629,-1000.0,0.00046897,120]
[419025472,1774776153652,-1000.0,0.00046897,120]
[419025473,1774776153676,-1000.0,0.00046897,120]
[419025474,1774776153700,-1000.0,0.00046897,120]
[419025475,1774776153723,-1003.79868,0.00046897,120]
[419025476,1774776153746,-100000.0,0.00046897,120]
[419025477,1774776153770,-1026.17873932,0.00046897,120]
[419025478,1774776153800,-7185.53616,0.00046897,120]
[419025479,1774776153825,-9875.0,0.00046897,120]
[419025480,1774776153850,-1003.47678679,0.00046897,120]
[419025481,1774776153876,-554.85714982,0.00046897,120]
[419025482,1774776153901,-283.50447979,0.00046897,120]
[419025483,1774776153926,-1000.0,0.00046897,30]
[419025484,1774776153951,-500.0,0.00046897,120]
[419025485,1774776154101,-500.0,0.00046897,120]
[419025486,1774776154126,-500.0,0.00046897,120]
[419025487,1774776154150,-500.0,0.00046897,120]
[419025488,1774776154176,-500.0,0.00046897,120]
[419025489,1774776154202,-632.49601714,0.00046897,120]
[419025490,1774776154226,-227.92418191,0.00046897,31]
[419025491,1774776154250,-500.0,0.00046897,120]
[419025492,1774776154274,-500.0,0.00046897,120]
[419025493,1774776154297,-555.52726235,0.00046897,120]
[419025494,1774776154321,-9717.20867258,0.00046897,90]
[419025495,1774776154346,-4677921.7673945,0.00046897,20]
[419025496,1774776165157,-791719.88377104,0.00046897,20]
[419025497,1774776165188,-500.0,0.00046897,120]
[419025498,1774776165213,-500.0,0.00046897,120]
[419025499,1774776165382,-549.628,0.00046897,120]
[419025500,1774776165408,-9497.20574044,0.00046897,120]
[419025501,1774776165434,-5197233.28248852,0.00046897,83]
[419025502,1774776170290,-1058736.79751148,0.00046897,83]
[419025503,1774776170316,-500.0,0.00046897,60]
[419025504,1774776170341,-500.0,0.00046897,60]
[419025505,1774776170368,-500.0,0.00046897,60]
[419025506,1774776170392,-500.0,0.00046897,60]
[419025507,1774776170418,-500.0,0.00046897,60]
[419025508,1774776170445,-500.0,0.00046897,60]
[419025509,1774776170471,-500.0,0.00046897,60]
[419025510,1774776170498,-500.0,0.00046897,60]
[419025511,1774776170540,-500.0,0.00046897,60]
[419025512,1774776170569,-555.13468576,0.00046897,60]
[419025513,1774776170597,-50000.0,0.00046897,44]
[419025514,1774776170627,-50000.0,0.00046897,45]
[419025515,1774776170655,-50000.0,0.00046897,46]
[419025516,1774776170683,-50000.0,0.00046897,47]
[419025517,1774776170712,-50000.0,0.00046897,48]
[419025518,1774776170741,-50000.0,0.00046897,49]
[419025519,1774776170768,-50000.0,0.00046897,50]
[419025520,1774776170798,-50000.0,0.00046897,51]
[419025521,1774776170831,-50000.0,0.00046897,52]
[419025522,1774776170859,-50000.0,0.00046897,53]
[419025523,1774776170886,-50000.0,0.00046897,54]
[419025524,1774776170916,-50000.0,0.00046897,55]
[419025525,1774776170943,-50000.0,0.00046897,56]
[419025526,1774776170970,-1011.67389494,0.00046897,120]
[419025527,1774776170996,-4000000.0,0.00046897,120]
[419025528,1774776171023,-285196.39390782,0.00046897,82]
[419025529,1774776174347,-6000000.0,0.00046897,82]
[419025530,1774776193589,-714803.60609218,0.00046897,82]
[419025531,1774776193616,-160.7475176,0.00046897,120]
[419025532,1774776193643,-220.61618969,0.00046897,120]
[419025533,1774776193668,-265.85,0.00046897,120]
[419025534,1774776193694,-265.84,0.00046897,120]
[419025535,1774776193720,-265.84,0.00046897,120]
[419025536,1774776193746,-151.0,0.00046897,120]
[419025537,1774776193773,-650.12,0.00046897,120]
[419025538,1774776193798,-650.12,0.00046897,120]
[419025539,1774776193823,-650.12,0.00046897,120]
[419025540,1774776193848,-650.12,0.00046897,120]
[419025541,1774776193872,-650.12,0.00046897,120]
[419025542,1774776193897,-650.12,0.00046897,120]
[419025543,1774776193922,-650.12,0.00046897,120]
[419025544,1774776193948,-650.12,0.00046897,120]
[419025545,1774776193974,-650.12,0.00046897,120]
[419025546,1774776193999,-650.12,0.00046897,120]
[419025547,1774776194025,-650.12,0.00046897,120]
[419025548,1774776194051,-650.12,0.00046897,120]
[419025549,1774776194076,-650.12,0.00046897,120]
[419025550,1774776194102,-650.12,0.00046897,120]
[419025551,1774776194126,-650.12,0.00046897,120]
[419025552,1774776194151,-650.12,0.00046897,120]
[419025553,1774776194175,-650.12,0.00046897,120]
[419025554,1774776194199,-650.12,0.00046897,120]
[419025555,1774776194222,-650.12,0.00046897,120]
[419025556,1774776194247,-650.12,0.00046897,120]
[419025557,1774776194272,-650.12,0.00046897,120]
[419025558,1774776194296,-650.12,0.00046897,120]
[419025559,1774776194321,-650.12,0.00046897,120]
[419025560,1774776194347,-650.3176588,0.00046897,120]
[419025561,1774776194376,-1000000.0,0.00046897,60]
[419025562,1774776194409,-1000000.0,0.00046897,60]
[419025563,1774776194440,-1000000.0,0.00046897,60]
[419025564,1774776194469,-1000000.0,0.00046897,60]
[419025565,1774776194497,-1000000.0,0.00046897,60]
[419025566,1774776194527,-268263.42254173,0.00046897,60]
[419025567,1774776198294,-731736.57745827,0.00046897,60]
[419025568,1774776198325,-1000000.0,0.00046897,60]
[419025569,1774776198355,-1000000.0,0.00046897,60]
[419025570,1774776198385,-1000000.0,0.00046897,60]
[419025571,1774776198413,-528.40953802,0.00046897,120]
[419025572,1774776198437,-560.76945965,0.00046897,14]
[419025573,1774776198463,-547.3191759,0.00046897,120]
[419025574,1774776198488,-165.72897291,0.00046897,30]
[419025575,1774776198518,-517.49410443,0.00046897,120]
[419025576,1774776198545,-545.92845269,0.00046897,120]
[419025577,1774776198570,-506.16237527,0.00046897,120]
[419025578,1774776198596,-323.86993638,0.00046897,120]
[419025579,1774776198621,-529.4889911,0.00046897,120]
[419025580,1774776198646,-496.86770779,0.00046897,120]
[419025581,1774776198670,-15244.92714159,0.00046897,30]
[419025582,1774776198695,-5000.79766676,0.00046897,30]
[419025583,1774776198718,-46399.999999,0.00046897,30]
[419025584,1774776198743,-4755.20120238,0.00046897,30]
[419025585,1774776198769,-2192140.45781786,0.00046897,30]
[419025586,1774776208949,-6000000.0,0.00046897,30]
[419025587,1774776212622,-6000000.0,0.00046897,30]
[419025590,1774776632323,-286.0,0.0001158,2]
[419025591,1774776632333,-419.59,0.0001158,2]
[419025592,1774776632342,-571.54109905,0.00012008,2]
[419025593,1774776632536,-633.57572135,0.00012008,2]
[419025594,1774776632546,-843.69,0.00012435,2]
[419025595,1774776632555,-500.0,0.00012671,2]
[419025596,1774776632565,-167.75871712,0.00012671,2]
[419025597,1774776632574,-250.0,0.00012738,2]
[419025598,1774776632583,-5000.0,0.00012738,2]
[419025599,1774776632593,-181.51395588,0.00012738,2]
[419025600,1774776632602,-166.66,0.00012804,2]
[419025601,1774776632611,-151.0,0.0001296,2]
[419025602,1774776632620,-1200.0,0.00012985,2]
[419025603,1774776632630,-500.0,0.00012986,2]
[419025604,1774776632644,-500.0,0.00012986,2]
[419025606,1774776632653,-500.0,0.00012986,2]
[419025608,1774776632663,-500.0,0.00012986,2]
[419025610,1774776632672,-500.0,0.00012986,2]
[419025612,1774776632682,-250.0,0.00013,2]
[419025613,1774776632691,-150.0,0.00013,2]
[419025614,1774776632701,-1500.0,0.00013008,2]
[419025615,1774776632710,-166.66,0.00013074,2]
[419025616,1774776632719,-275.85254358,0.000131,2]
[419025617,1774776632729,-474.65435778,0.000131,2]
[419025618,1774776632738,-515.17812831,0.000131,2]
[419025619,1774776632747,-530.97161466,0.000131,2]
[419025620,1774776632756,-177.88812711,0.000131,2]
[419025621,1774776632766,-184.30664501,0.000131,2]
[419025622,1774776632775,-307.0,0.00013124,2]
[419025624,1774776632784,-275.0,0.00013141,2]
[419025626,1774776632793,-301.125,0.0001316,2]
[419025628,1774776632802,-150.0,0.0001316,2]
[419025630,1774776632811,-154.00708367,0.00013161,2]
[419025632,1774776632820,-532.88981575,0.00013161,2]
[419025633,1774776632829,-231.09519386,0.00013161,2]
[419025635,1774776632839,-9969.14014828,0.00013161,2]
[419025637,1774776632848,-6626.85673631,0.00013161,2]
[419025639,1774776632857,-1014.84902259,0.00013161,2]
[419025641,1774776632866,-1014.84902259,0.00013161,2]
[419025643,1774776632875,-2500.0,0.00013161,2]
[419025645,1774776632884,-204.55546462,0.00013251,2]
[419025647,1774776632893,-151.0,0.00013258,2]
[419025649,1774776632903,-228.928,0.0001326,2]
[419025651,1774776632912,-2498.506,0.0001326,2]
[419025653,1774776632921,-443.68,0.0001326,2]
[419025655,1774776632930,-500.0,0.0001326,2]
[419025656,1774776632939,-1079.3194623,0.0001326,3]
[419025657,1774776632949,-513.93974732,0.0001326,2]
[419025658,1774776632959,-500.0,0.0001326,2]
[419025659,1774776632968,-203.48941701,0.0001326,2]
[419025660,1774776632977,-500.0,0.0001326,2]
[419025661,1774776632987,-500.0,0.0001326,2]
[419025662,1774776632996,-500.0,0.0001326,2]
[419025663,1774776633006,-500.0,0.0001326,2]
[419025664,1774776633015,-240.38891848,0.0001326,2]
[419025665,1774776633024,-500.0,0.0001326,2]
[419025666,1774776633035,-500.0,0.0001326,2]
[419025667,1774776633045,-500.0,0.0001326,2]
[419025668,1774776633056,-500.0,0.0001326,2]
[419025669,1774776633065,-500.0,0.0001326,2]
[419025670,1774776633074,-500.0,0.0001326,2]
[419025671,1774776633083,-500.0,0.0001326,2]
[419025672,1774776633093,-500.0,0.0001326,2]
[419025673,1774776633102,-500.0,0.0001326,2]
[419025674,1774776633111,-500.0,0.0001326,2]
[419025675,1774776633121,-500.0,0.0001326,2]
[419025676,1774776633132,-500.0,0.0001326,2]
[419025677,1774776633142,-500.0,0.0001326,2]
[419025678,1774776633152,-500.0,0.0001326,2]
[419025679,1774776633164,-500.0,0.0001326,2]
[419025680,1774776633173,-500.0,0.0001326,2]
[419025681,1774776633182,-500.0,0.0001326,2]
[419025682,1774776633193,-500.0,0.0001326,2]
[419025683,1774776633203,-500.0,0.0001326,2]
[419025684,1774776633212,-500.0,0.0001326,2]
[419025685,1774776633222,-500.0,0.0001326,2]
[419025686,1774776633232,-500.0,0.0001326,2]
[419025687,1774776633241,-500.0,0.0001326,2]
[419025688,1774776633252,-500.0,0.0001326,2]
[419025689,1774776633262,-500.0,0.0001326,2]
[419025690,1774776633273,-500.0,0.0001326,2]
[419025691,1774776633283,-500.0,0.0001326,2]
[419025692,1774776633293,-500.0,0.0001326,2]
[419025693,1774776633303,-500.0,0.0001326,2]
[419025694,1774776633313,-500.0,0.0001326,2]
[419025695,1774776633324,-500.0,0.0001326,2]
[419025696,1774776633335,-500.0,0.0001326,2]
[419025697,1774776633346,-500.0,0.0001326,2]
[419025698,1774776633356,-336.23799991,0.0001326,2]
[419025699,1774776633365,-500.0,0.0001326,2]
[419025700,1774776633375,-500.0,0.0001326,2]
[419025701,1774776633385,-1000.0,0.00013261,2]
[419025702,1774776633395,-32559.2547,0.00013261,2]
[419025703,1774776633407,-500.0,0.00013273,2]
[419025704,1774776633417,-500.0,0.00013273,2]
[419025705,1774776633426,-500.0,0.00013273,2]
[419025706,1774776633435,-500.0,0.00013273,2]
[419025707,1774776633444,-500.0,0.00013273,2]
[419025708,1774776633454,-500.0,0.00013273,2]
[419025709,1774776633463,-500.0,0.00013273,2]
[419025710,1774776633473,-454.80496102,0.00013273,2]
[419025711,1774776633482,-409.82711305,0.00013273,2]
[419025712,1774776633492,-500.0,0.00013273,2]
[419025713,1774776633501,-500.0,0.00013273,2]
[419025714,1774776633511,-500.0,0.00013273,2]
[419025715,1774776633520,-500.0,0.00013273,2]
[419025716,1774776633531,-500.0,0.00013273,2]
[419025717,1774776633540,-503.0948792,0.00013273,2]
[419025718,1774776633551,-500.0,0.00013273,2]
[419025719,1774776633560,-500.0,0.00013273,2]
[419025720,1774776633570,-290.31827011,0.00013273,2]